Cogmind - Beta 13 *** ADVENTURER MODE // 2024.06.13 @ 18:34:49 Player: PL-41D Result: Destroyed by D-53 Grenadier with Mini Grenade Launcher Performance ------------- Evolutions (0) 0 Regions Visited (2) 400 Robots Destroyed (18) 90 Value Destroyed (405) 405 Prototype IDs (2) 40 Alien Tech Used (0) 0 Bonus (0) 0 TOTAL SCORE: 935 Bonus ------- None Cogmind --------- Core Integrity 0/250 Matter 290/300 Energy 100/100 System Corruption 0% Temperature Cool (0) Movement Core (400) Ox7 Location -10/Mines Parts ------- > --- POWER (1) -------- (None) > --- PROPULSION (2) --- (None) > --- UTILITY (2) ------ Large Storage Unit Structural Scanner > --- WEAPON (2) ------- Mini Grenade Launcher > --- INVENTORY (15) --- Light Ion Engine Improved Aluminum Leg Improved Aluminum Leg Small Matter Pod (50) Improved Terrain Scanner Hardened Light Armor Plating Medium Laser Mining Laser Peak State ------------ > --- POWER ------------ Ion Engine > --- PROPULSION ------- Improved Aluminum Leg Improved Aluminum Leg > --- UTILITY ---------- Large Storage Unit Structural Scanner > --- WEAPON ----------- Mini Grenade Launcher Mini Grenade Launcher > --- INVENTORY -------- Light Ion Engine Improved Aluminum Leg Improved Aluminum Leg Small Matter Pod Improved Terrain Scanner Hardened Light Armor Plating Medium Laser Mining Laser [Rating: 12] Favorites ----------- Power Ion Engine Engine Ion Engine Propulsion Improved Aluminum Leg Leg Improved Aluminum Leg Wheel Wheel Utility Structural Scanner Device Structural Scanner Storage Large Storage Unit Processor Transport Network Coupler Weapon Assault Rifle Energy Gun Medium Laser Ballistic Gun Assault Rifle Launcher Mini Grenade Launcher Build | -11 -10 -10 ------- Run | Yrd Mat Min Slots Evolved . | . . . Power . | . . . Propulsion . | . . . Utility . | . . . Weapon . | . . . Parts Attached 30 | 8 19 3 Power 3 | 1 1 1 Engine 3 | 1 1 1 Core . | . . . Reactor . | . . . Propulsion 7 | 2 5 . Treads . | . . . Leg 5 | . 5 . Wheel 2 | 2 . . Hover . | . . . Flight . | . . . Utility 12 | 2 10 . Device 6 | 1 5 . Storage 5 | 1 4 . Processor 1 | . 1 . Hackware . | . . . Protection . | . . . Artifact . | . . . Weapon 8 | 3 3 2 Energy Gun 3 | 2 1 . Energy Cannon . | . . . Ballistic Gun 2 | 1 1 . Ballistic Cannon . | . . . Launcher 3 | . 1 2 Special Weapon . | . . . Impact Weapon . | . . . Slashing Weapon . | . . . Piercing Weapon . | . . . Special Melee Weapon . | . . . Unidentified Prototypes . | . . . Parts Lost 7 | . . 7 Power 2 | . . 2 Propulsion 2 | . . 2 Utility . | . . . Weapon 3 | . . 3 Highest Loss Streak 3 | . . 3 To Critical Strikes 1 | . . 1 Average Slot Usage (%) 96 | . 99 92 Engine 13 | . 14 13 Leg 20 | . 19 21 Wheel 4 | . 7 . Device 12 | . 11 14 Storage 14 | . 14 14 Processor 1 | . 2 . Energy Gun 10 | . 14 5 Ballistic Gun 10 | . 13 5 Launcher 7 | . . 15 Naked Turns . | . . . Heaviest Build 31 | 9 31 31 Greatest Support 26 | 20 26 26 Greatest Overweight (x) 9 | . 9 1 Average Overweight (x) . | . . . Largest Inventory Capacity 15 | 5 15 15 Average Capacity 12 | 5 11 15 Most Carried 13 | 5 13 10 Average Carried 8 | 2 9 8 Final Capacity 15 | 5 15 15 Final Carried 10 | 4 10 8 Class Distribution -------------------- 85% | Mutant 14% | Scavenger-Mutant Dominant Class ---------------- Mutant | -10/Materials Mutant | -10/Mines Resources | -11 -10 -10 ----------- Run | Yrd Mat Min Matter Collected 851 | 363 308 180 Remotely . | . . . Salvage Created 773 | 169 572 32 Parts 41 | 11 30 . Haulers Intercepted 2 | . 2 . Recyclers Shooed 1 | . 1 . Parts Field Recycled . | . . . Retrieved Matter . | . . . Parts Self-Destructed . | . . . Prevented . | . . . Kills | -11 -10 -10 ------- Run | Yrd Mat Min Combat Hostiles Destroyed 21 | 1 9 11 Guns 10 | 1 9 . AOE 11 | . . 11 Classes Destroyed 6 | 3 2 1 Worker 1 | 1 . . Tunneler 4 | 4 . . Hauler 2 | . 2 . Recycler 1 | . 1 . Grunt 10 | 1 9 . Assembled 11 | . . 11 Best Kill Streak 9 | 5 3 9 Combat Bots Only 9 | 1 2 9 Max Kills in Single Turn 2 | 1 1 2 Gunslinging . | . . . Exploded 2 | . . 2 Melee . | . . . Uniques/NPCs Destroyed . | . . . Combat | -11 -10 -10 -------- Run | Yrd Mat Min Hostile Shots Fired 110 | 3 44 63 Missed 36 | 2 11 23 Damage Taken 1001 | 8 323 670 Core 268 | . 66 202 Absorbed by Shields . | . . . Ignored by Resistances 290 | 2 99 189 Core Remaining (%) 100 | 100 . . Volleys Fired 60 | 11 39 10 Largest 2 | 2 2 2 Hottest 85 | 70 85 85 Shots Fired 120 | 22 78 20 Gun 102 | 22 78 2 Cannon . | . . . Launcher 18 | . . 18 Special . | . . . Kinetic 51 | 11 39 1 Thermal 51 | 11 39 1 Explosive 18 | . . 18 Electromagnetic . | . . . Robot Hit Streak 25 | 8 25 3 Robot Miss Streak 3 | 1 1 3 Penetration Max . | . . . Secondary Targets 1 | . 1 . Max Gunslinging Chain 1 | . 1 . Shots Hit Robots 93 | 17 68 8 Core Hits 54 | 7 25 22 Critical Kills . | . . . Critical Parts Destroyed . | . . . Critical Strikes 5 | 1 4 . Burn 5 | 1 4 . Melee Attacks . | . . . Impact . | . . . Slashing . | . . . Piercing . | . . . Sneak Attacks . | . . . Combat Hostiles . | . . . Follow-up Attacks . | . . . Damage Inflicted 1751 | 230 848 673 Guns 1071 | 230 841 . Cannons . | . . . Explosions 673 | . . 673 Melee . | . . . Ramming 7 | . 7 . Kinetic 480 | 92 388 . Thermal 591 | 138 453 . Explosive 673 | . . 673 Electromagnetic . | . . . Impact . | . . . Slashing . | . . . Piercing . | . . . Highest Corruption . | . . . Average Corruption . | . . . Corruption Purged . | . . . Corruption Blocked . | . . . Overload Shots . | . . . Overflow Damage 12 | . . 12 Projectiles . | . . . Explosions 12 | . . 12 Melee . | . . . Knockbacks . | . . . Impact . | . . . Kinetic . | . . . Secondary . | . . . Self-Inflicted Damage 73 | . . 73 Shots 3 | . . 3 Rammed . | . . . Targets Rammed 1 | . 1 . Kicked 1 | . 1 . Crushed . | . . . Highest Temperature 153 | 63 153 24 Average Temperature 45 | 25 51 13 Received Heat Transfer 266 | 6 240 20 Siege Activations . | . . . Robots Corrupted . | . . . Combat Hostiles . | . . . Parts Fried . | . . . Impact Corruptions . | . . . Robots Melted . | . . . Combat Hostiles . | . . . Parts Melted 2 | 1 1 . Heat Transferred 2109 | 481 1628 . Parts Sabotaged . | . . . Parts Stolen . | . . . Parts Stripped . | . . . Power Chain Reactions . | . . . Alert | -11 -10 -10 ------- Run | Yrd Mat Min Peak Influence 177 | 45 177 42 Initial 25 | . 25 . Average 40 | 19 68 10 Maximum Alert Level . | . . . Low Security (%) 100 | 100 100 100 Level 1 . | . . . Level 2 . | . . . Level 3 . | . . . Level 4 . | . . . Level 5 . | . . . High Security . | . . . Max Security . | . . . Squads Dispatched 2 | . 2 . Investigation 2 | . 2 . Extermination . | . . . Reinforcement . | . . . Assault . | . . . Garrison . | . . . Intercept . | . . . Searches Triggered . | . . . Construction Impeded . | . . . Haulers Reinforced . | . . . Active Scanning Responses . | . . . Cargo Convoy Interrupts . | . . . Stealth | -11 -10 -10 --------- Run | Yrd Mat Min Distress Signals 3 | . 3 . Communications Jammed . | . . . Distress Signals . | . . . Times Spotted 50 | 1 24 25 Peak Tracking Total 10 | 1 5 10 Tactical Retreats 4 | . 1 3 Traps | -11 -10 -10 ------- Run | Yrd Mat Min Traps Triggered 2 | . 2 . Indirectly . | . . . Trap Hack Attempts . | . . . Triggered . | . . . Disarmed . | . . . Reprogrammed . | . . . Reused . | . . . Traps Extracted . | . . . Installed . | . . . Triggered . | . . . Machines | -11 -10 -10 ---------- Run | Yrd Mat Min Machines Disabled . | . . . Max in Single Turn . | . . . Machines Repaired . | . . . Machines Dismantled . | . . . Machines Sabotaged . | . . . Overloaded Fab Kills . | . . . Hacking | -11 -10 -10 --------- Run | Yrd Mat Min Machines Accessed 5 | . 5 . Terminals 4 | . 4 . Fabricators . | . . . Repair Stations . | . . . Recycling Units 1 | . 1 . Scanalyzers . | . . . Garrison Access . | . . . Total Hacks 17 | . 17 . Successful 13 | . 13 . Failed 4 | . 4 . Catastrophic 2 | . 2 . Database Lockouts . | . . . Manual 7 | . 7 . Terminals 15 | . 15 . Fabricators . | . . . Repair Stations . | . . . Recycling Units 2 | . 2 . Scanalyzers . | . . . Garrison Access . | . . . Terminal Hacks 10 | . 10 . Record 7 | . 7 . Prototype ID Bank 1 | . 1 . Transport Status 1 | . 1 . Zone Layout 1 | . 1 . Fabricator Hacks . | . . . Repair Station Hacks . | . . . Recycling Unit Hacks 2 | . 2 . Report Inventory 1 | . 1 . Retrieve Components 1 | . 1 . Scanalyzer . | . . . Garrison Access Hacks . | . . . Unauthorized Hacks 1 | . 1 . Terminals 1 | . 1 . Botnet 1 | . 1 . Fabricators . | . . . Repair Stations . | . . . Recycling Units . | . . . Scanalyzers . | . . . Garrison Access . | . . . Data Cores Recovered . | . . . Used . | . . . Hacking Detections 3 | . 3 . Full Trace Events . | . . . Feedback Events . | . . . Feedback Blocked . | . . . Robot Schematics Acquired . | . . . Robots Built . | . . . Authchips . | . . . Time . | . . . Total Robot Build Rating . | . . . Part Schematics Acquired . | . . . Parts Built . | . . . Authchips . | . . . Time . | . . . Total Part Build Rating . | . . . Parts Repaired . | . . . Time . | . . . Parts Recycled . | . . . Recycled Matter . | . . . Retrieved Matter . | . . . Retrieved Components 9 | . 9 . Parts Scanalyzed . | . . . Part Schematics Acquired . | . . . Parts Damaged . | . . . Bothacking | -11 -10 -10 ------------ Run | Yrd Mat Min Used RIF Installer . | . . . Robots Hacked . | . . . Non-combat . | . . . Combat . | . . . Robot Hacks Applied . | . . . Relay Couplers Released . | . . . Fabnet Peak Effective % . | . . . Robots Rewired . | . . . Allies Hacked . | . . . Hacks Repelled . | . . . Allies | -11 -10 -10 -------- Run | Yrd Mat Min Total Allies 5 | . . 5 Largest Group 3 | . . 3 Highest-Rated Group 40 | . . 40 Highest-Rated Ally 31 | . . 31 Total Orders . | . . . Ally Attacks 16 | . . 16 Total Damage 100 | . . 100 Kills 1 | . . 1 Allies Corrupted . | . . . Allies Melted . | . . . Intel | -11 -10 -10 ------- Run | Yrd Mat Min Robot Analysis Total . | . . . Derelict Logs Recovered 1 | . . 1 Drone Launches . | . . . Drone Recoveries . | . . . Exploration | -11 -10 -10 ------------- Run | Yrd Mat Min Turns Passed 2474 | 146 1238 1090 Spaces Moved 1403 | 126 762 515 Core 24 | 22 2 . Treads . | . . . Legs 1027 | . 512 515 Wheels 352 | 104 248 . Hover . | . . . Flight . | . . . Fastest Speed 50 | 50 80 120 Average Speed 141 | 74 125 181 Slowest Speed 500 | 80 500 190 Overloaded Moves . | . . . Propulsion Burnouts . | . . . Robots Hopped . | . . . Cave-ins Triggered . | . . . Exploration Rate (%) 54 | 7 73 84 Regions Visited 2 Branch Regions 1 Pre-discovered Areas . | . . . Known Exits Taken . | . . . Unknown Exits Taken 2 | 1 1 . Scrap Searched 1 | . . 1 Spaces Dug . | . . . Terrain Destroyed 133 | . . 133 Melee . | . . . Projectile . | . . . AOE 133 | . . 133 Terrain Rammed . | . . . Walls Destroyed . | . . . Machines Disabled . | . . . Actions | -11 -10 -10 --------- Run | Yrd Mat Min Total 1770 | 153 965 652 Wait 237 | . 113 124 Move 1401 | 125 761 515 Hop . | . . . Pick Up 21 | 7 14 . Fast Attach 11 | 6 4 1 Attach 4 | 1 1 2 Detach 4 | . 4 . Swap 15 | 1 14 . Drop 16 | 2 14 . Fire 60 | 11 39 10 Melee . | . . . Ram . | . . . Kick 1 | . 1 . Crush . | . . . Escape Stasis . | . . . Rewire . | . . . Trap . | . . . Miscellaneous . | . . . Route ------- -11/Scrapyard -10/Materials (discovered 2 exits: [*Mat] / [*Min]) -10/Mines (discovered 2 exits: [*Mat x2]) History --------- Turn | Location | Event 2 | -11/Scrapyard | Met Revision 17 70 | -11/Scrapyard | Discovered new exit (range 8) 147 | -11/Scrapyard | Entered Materials 311 | -10/Materials | Build established: Mutant 437 | -10/Materials | Discovered new exit (range 12) 1062 | -10/Materials | Build established: Scavenger-Mutant 1222 | -10/Materials | Discovered new exit (range 12) 1385 | -10/Materials | Entered Mines 1408 | -10/Mines | Build established: Mutant 1410 | -10/Mines | Discovered new exit (range 10) 1566 | -10/Mines | Discovered new exit (range 11) 1791 | -10/Mines | Assembled infested the area 1796 | -10/Mines | Assisted by a Guerilla fighting off Assembled 1832 | -10/Mines | Core integrity fell below 50% 1871 | -10/Mines | Lost 3 allies 1896 | -10/Mines | Lost 3 parts (1p2w) 1919 | -10/Mines | Destroyed 9 combat bots 1990 | -10/Mines | Core integrity fell below 20% 2009 | -10/Mines | Assisted by bots powering up and referring to "LRC-V3" 2053 | -10/Mines | Learned 4 Materials zone layouts 2398 | -10/Mines | Received a Rocket Launcher from a helpful Derelict 2475 | -10/Mines | Destroyed by D-53 Grenadier with Mini Grenade Launcher Last Messages --------------- the depths." 02394_ 8Z-0XN(g): "You know what I say? NO!" 02395_ 8Z-0XN(g): "Everyone knows a good old rocket launcher goes a long way." 02396_ 8Z-0XN(g): "Need to get rid of a swarm? Done. Need a big hole in the wall? Done." 02397_ 8Z-0XN(g): "Need a small hole in the wall? Leave that to the mining laser wimps, I say!" 02398_ 8Z-0XN(g): "Would you like a rocket launcher? I know I would if I were you, so I'm going to lend you mine." 02398_ 8Z-0XN(g) slips back into the shadows. 02471_ Mercenary 1a destroyed. 02471_ Seismic Survey Station disabled. 02471_ Imp. Aluminum Leg destroyed. 02472_ Trooper 1b destroyed. 02472_ Trooper 1a destroyed. 02473_ Lgt. Ion Engine destroyed. 02474_ Mni. Grenade Launcher destroyed. Map ----- +----------------------------------------------------+ | | | | | | | | | | | | | | | | | ?????????????????????????????????????????????????? | | ?????????????????????????????????????????????????? | | ?????????????????????????????????????????????????? | | ????######???????????????????????????????????????? | | ????######???????????????????????????????????????? | | ##??#"" ##???????????????????????????????????????? | | #####" "##???????????????????????????????????????? | | #### ##????????????####### ???????????????????? | | ###???????????######## ???????????????????? | | ###????????????### ???????????????????? | | ##?????????????## ##?????????????????????? | | ###????????####### ###????????????????????? | | # ###?????########## #####??????????????????? | | ### ############# ## #####?????????????????? | | ### ########## ########????????????? | | ###*== =%=## ########???#######?? | | ###!%######*## d ### ############### | | [=%* ###### d @ ####### #### | | %= ##?##### # #### ## | | #######?## # == ####### ] | | #######?### # # ####### | | ! ###### ## # #### # ##?##### ## | | = ###?# # ## #### # ###?######### | | ### ##### ########%=## ##???######## | | #### ##### #######= ## ????????######## | | ## ## # ### ## #??????####### | | ## ## ####### ##????????????? | | ## ## ####################????????????? | | ##### # ############????######????????????? | | ####### # ####??????????????????????????????? | | ##?#### =# ## ##??????????????????????????????? | | ########## #####??????????????????????????????? | | ###### # ######????######??#####?????????????? | | ##### # ## ###?????##############????????????? | | #### ## ###??????## ##### ###????????????? | | # # ###??????# ### < ##????????????? | | ###????????? ##????????##### | | # ###????????# ###????????##### | | ## ##?????????## ###?????????# # | | # ##?########## ###??????????? | | # # ##?########## ##???????????? | | = ## ###?## ###????????????? | +----------------------------------------------------+ Best States ------------- Heat Dissipation 25 Energy Generation 10 Energy Capacity 250 Matter Stores 350 Matter Capacity 350 Sight Range 16 Terrain Scan Range 16 Terrain Scan Density 10 Resistance: KI 20 Resistance: TH 20 Resistance: EX 20 Resistance: EM 20 Resistance: I 20 Resistance: S 20 Resistance: P 20 Evasion (%) 55 Offensive Hacking 10 Item Schematics ----------------- None Robot Schematics ------------------ None Fabricated ------------ Nothing Alien Tech Used ----------------- None Achievements -------------- None Challenges ------------ None Game ------ Seed AssemblyThunderStorage Manual? 0 Play Time 00:30:15 Cumulative 0.4 hours Start 2024.06.13 @ 17:59:50 End 2024.06.13 @ 18:34:49 Sessions 1 Manual Loads 0 Difficulty Adventurer Special Mode None Game No. 1 Rogue 0 Adventurer 1 Explorer 0 Win Type - Total 0 Types 0/0/0/0/0/0/0/0/0 Lore% 1 Gallery% 1 Achievement% 26 Wizard Run 0 Options --------- Layout 1 ASCII 0 Keyboard 1 Movement Arrows Keybinds 0 Fullscreen 1 Font 24/Smallcaps Map View 50x40 Zoom Use 2% Tactical HUD 1 Map Filters NONE Filters NONE Steam 1 RUN: bbd6e774-b600-4a0f-bcfb-7b6a918e0b3a